bitfinex/quotes_ETHUSD_20260213
["timestamp","ask_amount","ask_price","bid_price","bid_amount"]
[1770964684341,0.47798626,1931.2,1930.3,0.001]
[1770964685000,0.47798626,1931.2,1930.5,0.001]
[1770964685190,0.47998626,1931.2,1930.5,0.001]
[1770964686199,0.47798626,1931.0,1930.5,0.001]
[1770964686399,0.47798626,1930.9,1930.5,0.001]
[1770964689003,1.29480008,1930.8,1930.5,0.001]
[1770964689724,0.47798626,1931.1,1930.5,0.001]
[1770964690031,1.29466597,1931.0,1930.5,0.001]
[1770964691318,1.29466597,1931.0,1930.5,0.45525765]
[1770964691816,5.178563,1931.1,1930.5,0.45525765]
[1770964691817,1.29464822,1931.1,1930.5,0.45525765]
[1770964694725,1.29658681,1931.2,1930.6,1.74919186]
[1770964694897,1.29658681,1931.2,1930.6,0.45425765]
[1770964695906,0.002,1931.2,1930.6,0.45425765]
[1770964696103,0.002,1931.2,1930.8,0.45425765]
[1770964696831,0.002,1931.3,1930.8,1.74903968]
[1770964697023,0.002,1931.3,1930.9,0.45425765]
[1770964698909,0.002,1931.3,1931.1,0.45425765]
[1770964699314,0.002,1931.2,1931.1,0.45425765]
[1770964700800,0.002,1931.2,1930.9,0.45425765]
[1770964701001,0.47998626,1931.6,1931.0,0.45425765]
[1770964701002,0.002,1931.6,1931.0,0.45425765]
[1770964701329,0.002,1931.6,1930.8,1.74905445]
[1770964701330,0.47998626,1931.6,1930.8,1.74905445]
[1770964701528,0.47998626,1931.6,1930.7,2.092]
[1770964702345,0.47998626,1931.6,1930.6,0.001]
[1770964702518,0.47798626,1931.3,1930.6,0.001]
[1770964702851,0.47798626,1931.1,1930.6,0.001]
[1770964704317,0.47798626,1931.0,1930.6,0.001]
[1770964705129,1.29473302,1930.9,1930.6,0.001]
[1770964705526,1.77271928,1930.9,1930.6,0.001]
[1770964706909,0.47798626,1930.9,1930.6,0.001]
[1770964707142,1.7727698,1930.9,1930.6,0.001]
[1770964709738,1.29478354,1930.9,1930.6,0.001]
[1770964710443,1.29471309,1931.0,1930.6,0.001]
[1770964710673,1.29465281,1931.1,1930.6,0.001]
[1770964710842,1.75961727,1931.1,1930.6,0.001]
[1770964711847,0.46496446,1931.0,1930.7,0.001]
[1770964712219,0.46496446,1931.0,1930.6,0.001]
[1770964713546,1.29465281,1931.1,1930.6,0.001]
[1770964713920,1.75961727,1931.1,1930.6,0.001]
[1770964715621,1.29465281,1931.1,1930.6,0.001]
[1770964715827,5.17831259,1931.2,1930.6,0.001]
[1770964716126,5.17769709,1931.4,1930.6,0.46970295]
[1770964718067,5.17769709,1931.4,1930.7,0.46870295]
[1770964720152,5.17769709,1931.4,1930.8,0.46870295]
[1770964721443,5.17769709,1931.4,1930.6,1.76458319]
[1770964721839,1.29439784,1931.4,1930.7,0.46870295]
[1770964722160,5.17948933,1931.5,1930.8,0.46870295]
[1770964723080,0.002,1931.5,1930.8,0.46870295]
[1770964723672,0.002,1931.5,1930.9,0.46870295]
[1770964723857,0.002,1931.3,1930.9,0.46870295]
[1770964724172,0.002,1931.3,1931.0,0.46870295]
[1770964724369,0.002,1931.3,1930.9,1.29468558]
[1770964724370,0.002,1931.3,1930.9,2.072]
[1770964724941,0.002,1931.3,1930.9,2.54070295]
[1770964725155,0.002,1931.3,1931.0,0.46870295]
[1770964726561,0.002,1931.3,1931.0,1.29460758]
[1770964726766,0.002,1931.3,1931.1,0.46870295]
[1770964728189,0.002,1931.3,1930.9,2.074]
[1770964728469,0.002,1931.3,1930.9,3.83739408]
[1770964728652,0.002,1931.3,1931.0,0.46870295]
[1770964732052,0.002,1931.3,1931.0,1.76331992]
[1770964733251,0.002,1931.3,1931.1,0.46870295]
[1770964733483,0.002,1931.5,1931.2,0.46870295]
[1770964733663,0.002,1931.5,1931.3,7.10020257]
[1770964733852,0.002,1931.5,1931.4,2.079]
[1770964734051,0.002,1931.7,1931.3,0.46870295]
[1770964734256,7.10219802,1931.7,1931.3,2.079]
[1770964734579,0.002,1931.7,1931.3,2.079]
[1770964736386,1.29619682,1931.7,1931.3,2.079]
[1770964736683,0.002,1931.4,1931.3,2.079]
[1770964740286,0.002,1931.4,1931.1,1.76324875]
[1770964740480,0.002,1931.4,1931.3,2.078]
[1770964741796,0.002,1931.7,1931.3,2.078]
[1770964741969,0.002,1931.7,1931.3,2.56656378]
[1770964742679,0.002,1931.7,1931.3,3.86102545]
[1770964743991,0.002,1931.7,1931.4,0.48856378]
[1770964744356,0.46217105,1931.7,1931.4,2.079]
[1770964744562,1.29426382,1931.6,1931.2,2.079]
[1770964744782,1.75443487,1931.6,1931.2,2.079]
[1770964744985,0.46017105,1931.5,1930.7,0.001]
[1770964745178,0.46017105,1931.5,1930.8,2.079]
[1770964745988,0.46017105,1931.5,1930.7,0.001]
[1770964746661,0.46017105,1931.3,1930.7,0.001]
[1770964748191,0.46017105,1931.3,1930.8,0.001]
[1770964748569,0.002,1931.2,1930.8,0.001]
[1770964748794,1.29459893,1931.1,1930.8,0.001]
[1770964749493,0.002,1931.2,1930.8,0.48956378]
[1770964750304,1.29431384,1931.6,1930.8,0.48956378]
[1770964750807,1.29431384,1931.6,1931.0,0.48856378]
[1770964751491,1.29620729,1931.7,1931.0,0.48856378]
[1770964752300,0.002,1931.7,1931.1,2.56156378]
[1770964752475,0.002,1931.7,1931.2,0.48856378]
[1770964752983,0.002,1931.7,1931.2,1.78308063]
[1770964753610,0.002,1931.7,1931.3,0.48856378]
[1770964754924,0.46217105,1931.7,1931.1,2.073]
[1770964755278,1.29426382,1931.6,1931.1,2.073]
[1770964756307,1.75641455,1931.7,1931.1,3.36759439]
[1770964756600,1.2962435,1931.7,1931.1,3.36759439]
[1770964756805,1.2962435,1931.7,1931.1,3.85615817]
[1770964757216,0.002,1931.8,1931.2,0.48856378]
[1770964757382,0.002,1931.8,1931.3,1.78302864]
[1770964757982,0.002,1931.8,1931.3,0.48856378]
[1770964758311,0.002,1931.8,1931.1,3.85610827]
[1770964758609,0.46217105,1931.8,1931.2,2.073]
[1770964759478,1.29419682,1931.7,1931.2,2.073]
[1770964760099,5.63872027,1931.8,1931.3,0.48856378]
[1770964760100,0.002,1931.8,1931.3,0.48856378]
[1770964761085,1.29613663,1931.8,1931.2,2.073]
[1770964761288,0.002,1931.7,1931.2,2.073]
[1770964761687,0.46217105,1931.7,1930.8,1.78431877]
[1770964762006,0.46217105,1931.7,1930.9,3.006]
[1770964762508,0.46217105,1931.7,1930.9,3.49456378]
[1770964763203,0.002,1931.7,1931.0,0.48856378]
[1770964763595,0.002,1931.7,1931.1,1.29459893]
[1770964763800,0.002,1931.7,1931.1,1.78316271]
[1770964766319,1.29479992,1931.8,1931.1,1.78316271]
[1770964770092,1.75497097,1931.8,1931.1,0.48856378]
[1770964770297,0.46017105,1931.7,1930.9,4.78925517]
[1770964772118,1.29426382,1931.6,1931.0,3.002]
[1770964772419,1.29426382,1931.6,1931.0,2.069]
[1770964772586,0.45268688,1931.5,1931.1,2.069]
[1770964773080,1.29424971,1931.7,1931.2,0.45629608]
[1770964773285,0.002,1931.7,1931.2,0.45629608]
[1770964774224,0.002,1931.9,1931.4,0.45629608]
[1770964775589,0.002,1931.9,1931.2,1.77677612]
[1770964775897,0.47162471,1931.9,1931.3,2.068]
[1770964776283,0.46962471,1931.7,1931.3,2.068]
[1770964778301,1.29422922,1931.7,1931.3,2.068]
[1770964778623,1.29422922,1931.7,1931.0,1.77790691]
[1770964778829,1.29422922,1931.7,1931.2,2.066]
[1770964778830,1.76385393,1931.7,1931.2,2.066]
[1770964779627,1.29418138,1931.8,1931.2,2.066]
[1770964779829,1.2961014,1931.9,1931.3,0.48229019]
[1770964780032,0.002,1931.9,1931.3,0.48229019]
[1770964780330,0.002,1931.9,1931.4,1.77668803]
[1770964781633,0.002,1932.0,1931.4,1.77668803]
[1770964781831,0.002,1932.0,1931.5,0.48229019]
[1770964782033,0.002,1932.2,1931.5,0.48229019]
[1770964782422,0.46962471,1932.1,1931.0,0.001]
[1770964782730,0.46962471,1932.1,1931.0,1.77790221]
[1770964782932,0.46962471,1932.1,1931.1,1.30229019]
[1770964783239,0.46962471,1932.1,1931.2,0.48229019]
[1770964784624,1.29399585,1932.0,1931.3,1.77675505]
[1770964784824,1.29395436,1932.1,1931.4,0.48229019]
[1770964785237,1.29395436,1932.1,1931.4,0.48329019]
[1770964785442,0.002,1931.8,1931.4,0.48329019]
[1770964786939,0.002,1931.8,1931.4,0.001]
[1770964787239,0.002,1931.8,1931.4,1.29539427]
[1770964787840,0.002,1931.8,1931.4,0.001]
[1770964788213,0.002,1931.8,1931.4,1.77767605]
[1770964788742,0.002,1931.8,1931.5,2.067]
[1770964794316,0.002,1931.8,1931.4,0.001]
[1770964794518,0.002,1931.8,1931.5,2.071]
[1770964795511,5.17602091,1932.0,1931.5,2.071]
[1770964795712,5.17583216,1932.1,1931.5,2.071]
[1770964796321,0.46962471,1932.0,1931.5,2.071]
[1770964796932,1.29392888,1932.1,1931.5,3.36532896]
[1770964797135,1.29392888,1932.1,1931.5,2.071]
[1770964797136,0.46962471,1932.0,1931.5,2.071]
[1770964797457,0.46962471,1931.8,1931.3,0.001]
[1770964797642,0.46962471,1931.5,1930.9,0.001]
[1770964797819,0.46962471,1931.2,1930.7,0.001]
[1770964798020,0.46962471,1931.2,1930.4,0.001]
[1770964798850,0.46962471,1931.2,1930.2,0.001]
[1770964798851,0.46962471,1930.9,1930.2,0.001]
[1770964799160,0.46962471,1930.7,1930.0,0.001]
[1770964799333,0.46962471,1930.7,1930.0,0.002]
[1770964799519,0.46962471,1930.5,1930.0,0.002]
[1770964800254,0.46962471,1930.6,1930.1,0.001]
[1770964800765,0.46962471,1930.6,1930.0,0.001]
[1770964801055,0.46962471,1930.6,1930.0,0.002]
[1770964801352,0.46962471,1930.6,1930.1,0.001]
[1770964801555,1.76460723,1930.6,1930.1,0.001]
[1770964801929,1.29498252,1930.6,1930.0,0.001]
[1770964802230,1.29498252,1930.6,1930.1,0.001]
[1770964802645,1.29490819,1930.7,1930.2,0.001]
[1770964802846,1.29490819,1930.7,1930.1,0.001]
[1770964803351,1.29490819,1930.7,1930.2,0.001]
[1770964803541,0.48546931,1930.6,1930.0,0.001]
[1770964805225,5.66475513,1930.8,1930.0,0.001]
[1770964805764,0.48546931,1930.7,1930.0,0.001]
[1770964808552,1.78040352,1930.6,1930.0,0.001]
[1770964810833,1.29493421,1930.6,1930.0,0.46857009]
[1770964811039,1.29492057,1930.7,1930.0,0.46857009]
[1770964811243,1.29492057,1930.7,1930.1,0.001]
[1770964811556,0.002,1930.6,1930.1,0.001]
[1770964812654,0.48746931,1930.6,1930.1,0.001]
[1770964813053,1.29500129,1930.5,1930.1,0.001]
[1770964815147,0.002,1930.6,1930.1,0.001]
[1770964816785,0.48746931,1930.6,1930.1,0.001]
[1770964817281,0.002,1930.6,1930.1,0.001]
[1770964818061,0.48746931,1930.6,1930.1,0.001]
[1770964818981,0.002,1930.6,1930.1,0.001]
[1770964819775,0.002,1930.6,1930.1,0.46857009]
[1770964822083,0.002,1930.6,1930.1,1.76382257]
[1770964824862,0.002,1930.6,1930.1,1.29625248]
[1770964825066,0.002,1930.6,1930.2,0.46757009]
[1770964825561,0.002,1930.6,1930.3,2.052]
[1770964826293,0.002,1930.6,1930.3,2.51957009]
[1770964826682,0.002,1930.6,1930.4,0.46757009]
[1770964826987,1.29453189,1931.2,1930.5,0.46757009]
[1770964827588,1.29451016,1931.3,1930.5,0.46757009]
[1770964828886,0.002,1931.5,1930.5,0.46757009]
[1770964829094,0.002,1931.5,1930.7,0.46757009]
[1770964829271,0.48746931,1931.5,1930.8,2.05]
[1770964830161,0.002,1931.5,1930.8,2.51757009]
[1770964830364,0.002,1931.5,1930.9,0.46757009]
[1770964831866,0.46797816,1931.5,1930.8,1.29476457]
[1770964832067,0.46797816,1931.5,1930.8,3.34376457]
[1770964832264,0.46797816,1931.5,1930.8,3.81587279]
[1770964832466,0.46797816,1931.5,1930.8,2.52110822]
[1770964832667,0.46797816,1931.5,1930.8,3.81590349]
[1770964834002,1.29439784,1931.4,1930.8,3.34379527]
[1770964835196,0.002,1931.5,1930.9,0.45652018]
[1770964835398,0.002,1931.4,1930.9,0.45652018]
[1770964836595,0.002,1931.4,1930.8,3.34379444]
[1770964837102,0.002,1931.4,1930.8,3.80031462]
[1770964840202,0.002,1931.4,1930.9,0.45652018]
[1770964840407,0.002,1931.4,1930.9,2.50552018]
[1770964841412,0.002,1931.4,1930.9,3.80022817]
[1770964845423,0.002,1931.4,1931.0,0.45652018]
[1770964847211,0.002,1931.4,1931.1,1.29459893]
[1770964847410,0.002,1931.4,1931.2,0.45652018]
[1770964847800,0.002,1931.4,1931.3,2.051]
[1770964848206,0.002,1931.4,1931.3,2.50752018]
[1770964850901,0.002,1931.4,1931.3,3.80198504]
[1770964851332,0.47505437,1932.0,1931.3,3.34546486]
[1770964851494,1.76905999,1932.0,1931.4,0.45652018]
[1770964851696,1.76905999,1932.0,1931.3,3.34546486]
[1770964851908,0.47305437,1931.9,1931.3,3.34546486]
[1770964852717,1.76905999,1932.0,1931.3,3.80198504]
[1770964853118,1.76905999,1932.0,1931.4,0.45652018]
[1770964853423,0.47305437,1931.9,1931.3,3.34546486]
[1770964853624,0.002,1932.1,1931.4,0.45652018]
[1770964853798,0.002,1932.1,1931.5,0.45652018]
[1770964854892,0.002,1932.1,1931.8,1.29412982]
[1770964855092,0.002,1932.1,1931.8,3.34712982]
[1770964855521,0.002,1932.1,1931.8,3.80365]
[1770964855704,0.002,1932.1,1931.4,6.11048865]
[1770964855705,0.47505437,1932.1,1931.5,7.92050804]
[1770964855910,0.47505437,1932.1,1931.6,2.054]
[1770964856297,0.47305437,1931.9,1931.3,1.29441844]
[1770964856521,0.47305437,1931.9,1931.5,2.054]
[1770964857294,1.76712616,1931.9,1931.5,2.054]
[1770964857724,0.47305437,1931.9,1931.5,2.054]
[1770964858901,1.76712546,1931.9,1931.3,1.29441601]
[1770964859226,1.76712546,1931.9,1931.2,5.63453015]
[1770964859227,0.47305437,1931.7,1931.4,2.055]
[1770964859724,0.47305437,1931.7,1931.4,2.056]
[1770964860707,0.47305437,1931.7,1931.4,0.001]
[1770964861626,1.29426382,1931.6,1931.4,0.001]
[1770964861824,1.29426382,1931.6,1930.7,0.45777832]
[1770964861825,0.4969509,1931.5,1930.7,0.45777832]
[1770964862019,0.4969509,1931.5,1930.7,2.56085998]
[1770964862214,0.4969509,1931.5,1930.7,1.29581541]
[1770964862417,0.4969509,1931.5,1930.5,0.001]
[1770964862418,0.4969509,1931.3,1930.5,0.001]
[1770964862920,0.4969509,1931.3,1930.5,1.29598853]
[1770964863710,1.79148279,1931.2,1930.5,1.29598853]
[1770964864231,1.29451738,1931.3,1930.6,0.45677832]
[1770964864798,1.79146828,1931.3,1930.6,0.45677832]
[1770964866425,1.29435648,1931.5,1930.7,1.75164546]
[1770964866630,0.4969509,1931.4,1930.6,1.29488392]
[1770964866829,0.4969509,1931.4,1930.5,1.75272611]
[1770964869629,1.79141576,1931.3,1930.5,1.75272611]
[1770964870128,0.4969509,1931.2,1930.5,1.75277762]
[1770964870437,0.4969509,1931.2,1930.5,0.001]
[1770964870607,0.4969509,1931.2,1930.5,1.29599591]
[1770964871007,0.4969509,1931.2,1930.5,1.75277423]
[1770964871737,1.29459893,1931.1,1930.5,1.75277423]
[1770964872127,0.4969509,1931.0,1930.6,0.001]
[1770964874134,1.79168392,1930.9,1930.6,0.001]
[1770964875150,0.4969509,1930.8,1930.2,0.001]
[1770964876255,1.79181804,1930.7,1930.2,0.001]
[1770964876615,5.17946858,1930.8,1930.2,0.001]
[1770964876616,1.29484846,1930.8,1930.2,0.001]
[1770964877856,1.2946905,1931.0,1930.2,0.45777832]
[1770964878373,0.4969509,1931.0,1930.3,1.29513547]
[1770964880050,1.2945792,1931.2,1930.4,0.45677832]
[1770964880346,1.79348218,1931.3,1930.6,0.45677832]
[1770964881143,8.42852052,1931.3,1930.6,0.45677832]
[1770964881643,7.13198924,1931.1,1930.4,8.38684756]
[1770964882323,1.29453616,1931.2,1930.6,1.29493421]
[1770964882523,8.42848797,1931.3,1930.6,1.75171253]
[1770964884652,0.4969509,1931.2,1930.4,8.38683198]
[1770964884826,7.13198924,1931.1,1930.5,2.041]
[1770964885222,7.13198924,1931.1,1930.5,2.042]
[1770964885754,0.002,1931.0,1930.5,2.042]
[1770964886058,0.002,1931.0,1930.5,2.49877832]
[1770964886653,0.002,1931.0,1930.6,1.29493421]
[1770964887559,0.002,1931.0,1930.6,1.75171253]
[1770964888650,0.002,1931.0,1930.6,8.38675087]
[1770964891772,0.002,1931.0,1930.7,0.48384327]
[1770964892469,0.002,1931.3,1930.9,0.48384327]
[1770964892638,0.002,1931.3,1930.9,2.53684327]
[1770964892834,0.002,1931.3,1931.1,0.48384327]
[1770964893442,0.002,1931.3,1930.9,2.53684327]
[1770964893834,0.002,1931.3,1931.0,1.29466597]
[1770964894974,0.002,1931.3,1931.0,1.76195523]
[1770964896063,1.29610598,1931.9,1931.2,0.46728926]
[1770964896239,0.002,1931.9,1931.3,9.1603276]
[1770964897892,0.002,1931.9,1931.4,0.46728926]
[1770964898187,0.002,1931.9,1931.6,0.46728926]
[1770964898578,0.002,1931.8,1931.6,0.46728926]
[1770964899285,0.002,1931.8,1931.6,2.52728926]
[1770964900787,0.002,1931.8,1931.6,3.82150637]
[1770964903693,0.002,1931.8,1931.6,2.06]
[1770964903989,0.47309702,1931.8,1931.7,2.068]
[1770964904572,0.002,1931.8,1931.7,2.068]
[1770964907302,0.002,1932.1,1931.7,3.36219682]
[1770964908990,1.29593571,1932.1,1931.7,2.068]
[1770964909162,0.002,1932.1,1931.7,2.068]
[1770964910684,0.002,1932.0,1931.8,2.07]
[1770964911893,1.76709287,1932.0,1931.8,2.07]
[1770964913307,1.76709287,1932.0,1931.5,2.069]
[1770964913599,0.47309702,1932.0,1931.5,2.069]
[1770964915677,0.002,1932.2,1931.6,7.09564874]
[1770964915999,0.002,1932.2,1931.7,0.46728926]
[1770964916596,0.002,1932.2,1931.8,7.09564874]
[1770964916773,0.002,1932.2,1931.9,2.069]
[1770964918498,0.002,1932.2,1931.9,9.99142074]
[1770964918798,0.002,1932.3,1931.9,9.99142074]
[1770964919302,1.29560945,1932.6,1932.1,6.62835948]
[1770964919504,0.47109702,1932.5,1932.0,6.62835948]
[1770964920603,0.47109702,1932.5,1932.0,8.70035948]
[1770964921302,1.293728,1932.4,1932.0,8.70035948]
[1770964921510,0.45148758,1932.3,1932.0,2.072]
[1770964921707,0.45148758,1932.3,1931.9,2.073]
[1770964922374,0.45148758,1932.3,1931.6,6.62835948]
[1770964922678,0.45148758,1932.3,1931.9,0.001]
[1770964923612,1.74528881,1932.3,1931.9,0.001]
[1770964924313,0.002,1932.4,1931.9,0.001]
[1770964924483,0.002,1932.4,1932.0,6.62835948]
[1770964925011,0.45148758,1932.3,1931.9,0.001]
[1770964925393,0.002,1932.4,1931.9,1.29506283]
[1770964925924,0.002,1932.4,1932.0,6.62835948]
[1770964927800,0.002,1932.4,1932.0,7.09500847]
[1770964928299,0.45348758,1932.4,1931.9,0.001]
[1770964929435,0.45148758,1932.3,1931.9,0.001]
[1770964929921,1.74534949,1932.2,1931.9,0.001]
[1770964935625,1.29384276,1932.3,1932.0,0.001]
[1770964936139,1.29584276,1932.3,1932.0,0.001]
[1770964936340,0.002,1932.4,1932.0,0.46764899]
[1770964936510,0.002,1932.5,1932.1,7.09500847]
[1770964936706,0.002,1932.5,1932.1,0.46664899]
[1770964936911,0.002,1932.5,1932.1,2.53964899]
[1770964937912,1.74715375,1932.5,1932.1,2.073]
[1770964940651,1.29566617,1932.5,1932.1,2.073]
[1770964941163,7.07984706,1932.4,1932.0,0.001]
[1770964941319,0.45148758,1932.3,1932.0,0.001]
[1770964942028,1.29386191,1932.2,1932.0,0.001]
[1770964942415,0.45148758,1932.3,1932.0,0.001]
[1770964942646,3.2017102,1932.5,1932.0,0.001]
[1770964943140,1.908,1932.5,1932.0,0.46764899]
[1770964943542,3.20166634,1932.5,1932.0,0.46764899]
[1770964945248,3.20166634,1932.5,1932.0,1.76164167]
[1770964945445,1.908,1932.5,1932.0,1.76164167]
[1770964945846,0.002,1932.5,1932.0,1.76164167]
[1770964946819,0.45348758,1932.5,1932.0,2.074]
[1770964947227,0.45148758,1932.4,1932.0,0.001]
[1770964948441,1.74528253,1932.3,1932.1,0.001]
[1770964952054,1.74528253,1932.3,1932.0,0.001]
[1770964952647,1.29379495,1932.3,1932.0,0.001]
[1770964953335,5.17517983,1932.4,1932.0,0.001]
[1770964954455,1.293728,1932.4,1932.0,0.001]
[1770964955746,1.79236537,1932.4,1932.0,0.001]
[1770964958168,0.49863737,1932.3,1932.0,0.001]
[1770964960254,1.29386191,1932.2,1932.0,0.001]
[1770964962064,0.49863737,1932.1,1931.8,0.001]
[1770964962450,1.29399585,1932.0,1931.8,0.001]
[1770964964337,5.17598343,1932.1,1931.8,0.001]
[1770964968575,1.29412982,1931.8,1931.4,0.001]
[1770964968868,1.79272106,1931.9,1931.4,0.001]
[1770964970164,1.29404428,1932.0,1931.4,0.47200785]
[1770964970457,1.79261933,1932.1,1931.4,0.47200785]
[1770964970663,1.79261933,1932.1,1931.5,0.47100785]
[1770964970664,1.29398196,1932.1,1931.5,0.47100785]
[1770964970859,1.29398196,1932.1,1931.7,0.47100785]
[1770964971064,1.29389255,1932.2,1931.7,0.47100785]
[1770964974661,1.29584979,1932.3,1931.8,0.47100785]
[1770964974857,1.29584979,1932.3,1931.8,0.47200785]
[1770964975165,1.29584979,1932.3,1931.8,0.001]
[1770964976384,0.49863737,1932.2,1931.8,0.001]
[1770964976849,1.79256625,1932.1,1931.8,0.001]
[1770964977181,0.49863737,1932.0,1931.8,0.001]
[1770964978180,0.49863737,1932.0,1931.7,0.001]
[1770964978384,7.126475,1932.0,1931.7,0.001]
[1770964978876,1.29406283,1931.9,1931.7,0.001]
[1770964979071,1.29406283,1931.9,1931.4,0.001]
[1770964979779,0.49863737,1931.7,1931.4,0.001]
[1770964980194,0.49863737,1931.7,1931.2,0.001]
[1770964980764,7.09470844,1931.6,1931.2,0.001]
[1770964980956,1.29433083,1931.5,1931.2,0.001]
[1770964981584,3.72420164,1931.5,1931.2,0.001]
[1770964981786,3.25733083,1931.5,1931.2,0.001]
[1770964983583,1.29433083,1931.5,1931.2,0.001]
[1770964983879,3.26024321,1931.7,1931.2,0.48891196]
[1770964985388,1.29416936,1931.8,1931.3,0.48791196]
[1770964985581,7.14338894,1931.9,1931.4,0.48791196]
[1770964985774,3.26111049,1931.9,1931.4,0.48791196]
[1770964986756,1.29392888,1932.2,1931.4,0.48791196]
[1770964986960,3.26192888,1932.2,1931.4,0.48791196]
[1770964987783,3.26192888,1932.2,1931.5,0.48791196]
[1770964988286,3.26192888,1932.2,1931.6,0.48791196]
[1770964988287,0.002,1932.1,1931.6,0.48791196]
[1770964989594,0.46887081,1932.1,1931.3,0.001]
[1770964989765,1.76086666,1932.0,1931.3,0.001]
[1770964990088,6.62783763,1931.8,1931.3,0.001]
[1770964990275,7.09470844,1931.8,1931.3,0.001]
[1770964990587,0.46687081,1931.8,1931.3,0.001]
[1770964992792,1.29419682,1931.7,1931.3,0.001]
[1770964996860,1.76093364,1931.9,1931.3,0.001]
[1770965000489,1.76093364,1931.9,1931.4,0.001]
[1770965001058,3.73493364,1931.9,1931.4,0.001]
[1770965001259,0.46687081,1931.8,1931.4,0.001]
[1770965001890,0.46687081,1931.6,1931.4,0.001]
[1770965002491,1.76106763,1931.7,1931.4,0.001]
[1770965004270,1.56106763,1931.7,1931.4,0.001]
[1770965005301,1.09419682,1931.7,1931.4,0.001]
[1770965007001,1.56106763,1931.7,1931.4,0.001]
[1770965008198,1.09419682,1931.7,1931.4,0.48891196]
[1770965008402,1.29412982,1931.8,1931.4,0.48891196]
[1770965008902,3.27906283,1931.9,1931.4,0.48891196]
[1770965011211,0.002,1932.1,1931.7,6.62783763]
[1770965011395,1.29584662,1932.3,1931.7,0.47084451]
[1770965011909,0.002,1932.3,1931.7,0.47084451]
[1770965012405,0.002,1932.3,1931.8,0.47084451]
[1770965013403,0.002,1931.9,1931.8,0.47084451]
[1770965013618,0.002,1932.3,1931.9,0.47084451]
[1770965014315,0.002,1932.3,1932.0,0.48276626]
[1770965015389,0.002,1932.3,1932.1,0.48276626]
[1770965016702,0.002,1932.3,1931.9,0.48276626]
[1770965017596,0.45723254,1932.3,1931.7,2.52676626]
[1770965018792,1.29581713,1932.3,1931.8,0.48276626]
[1770965019109,0.002,1932.3,1931.8,0.48276626]
[1770965020112,1.29579962,1932.3,1931.8,0.48276626]
[1770965020916,0.002,1932.3,1931.9,0.48276626]
[1770965021099,0.002,1932.3,1932.0,0.48276626]
[1770965023115,0.002,1932.3,1932.1,0.48276626]
[1770965023314,0.002,1932.5,1932.2,0.48276626]
[1770965024382,0.002,1932.7,1932.4,0.48276626]
[1770965025187,0.002,1932.7,1932.3,2.53076626]
[1770965025904,0.002,1932.7,1932.3,2.048]
[1770965028089,0.002,1932.7,1932.3,2.53076626]
[1770965030115,0.002,1932.7,1932.3,3.82454223]
[1770965030420,0.002,1932.7,1932.3,2.53076626]
[1770965031218,0.002,1932.7,1932.3,3.82453817]
[1770965031726,0.002,1932.7,1932.3,2.53076626]
[1770965031902,0.002,1932.7,1932.3,3.82456025]
[1770965032409,0.002,1932.7,1932.3,2.53076626]
[1770965034821,0.002,1932.7,1932.3,3.34178691]
[1770965035028,0.002,1932.7,1932.4,0.48276626]
[1770965035825,0.002,1932.7,1932.4,7.10620033]
[1770965036398,0.002,1932.7,1932.5,0.48276626]
[1770965038295,0.002,1932.6,1932.5,0.48276626]
[1770965039923,0.002,1932.7,1932.5,0.48276626]
[1770965040125,0.002,1932.9,1932.6,9.16820033]
[1770965040725,0.002,1932.9,1932.6,2.062]
[1770965041116,0.46309504,1932.9,1932.4,0.49985946]
[1770965041302,0.46309504,1932.9,1932.6,2.064]
[1770965041930,1.75651253,1932.9,1932.6,2.064]
[1770965042931,0.46109504,1932.8,1932.4,0.001]
[1770965044028,1.29352718,1932.7,1932.4,0.001]
[1770965044204,1.29350874,1932.8,1932.4,0.001]
[1770965044401,0.002,1932.9,1932.4,0.49985946]
[1770965044730,1.29540294,1932.9,1932.4,0.49985946]
[1770965046238,0.46309504,1932.9,1932.4,0.001]
[1770965048337,1.29346026,1932.8,1932.4,0.001]
[1770965049713,1.75652931,1932.9,1932.4,0.001]
[1770965050328,1.75652931,1932.9,1932.4,2.067]
[1770965051613,1.75652931,1932.9,1932.5,0.001]
[1770965052022,0.002,1932.8,1932.5,0.001]
[1770965052237,0.46309504,1932.8,1932.5,0.001]
[1770965052544,1.29352718,1932.7,1932.5,0.001]
[1770965052738,1.75462222,1932.7,1932.5,0.001]
[1770965053116,1.2955049,1932.8,1932.5,0.001]
[1770965053714,0.002,1932.8,1932.5,0.001]
[1770965053924,0.002,1932.8,1932.5,0.49985946]
[1770965060451,0.002,1932.8,1932.5,0.001]
[1770965062559,1.29546026,1932.8,1932.5,0.001]
[1770965065265,1.29546026,1932.8,1932.6,0.001]
[1770965065564,0.002,1932.7,1932.6,0.001]
[1770965071670,0.48197986,1932.7,1932.6,0.001]
[1770965071850,0.48197986,1932.7,1932.4,0.001]
[1770965073048,1.29359412,1932.6,1932.4,0.001]
[1770965074641,1.75357224,1932.6,1932.4,0.001]
[1770965077275,1.29359412,1932.6,1932.4,0.001]
[1770965077482,1.29360086,1932.6,1932.4,0.001]
[1770965078284,1.29360086,1932.6,1932.5,0.001]
[1770965081187,1.29557696,1932.7,1932.5,0.001]
[1770965082472,0.46197812,1932.7,1932.5,0.001]
[1770965084803,0.45997812,1932.5,1932.0,0.001]
[1770965086777,3.30859412,1932.6,1932.0,0.48507434]
[1770965087179,3.76857224,1932.6,1932.0,0.48507434]
[1770965090008,3.76857224,1932.6,1932.1,0.001]
[1770965090167,0.45997812,1932.4,1932.1,0.001]
[1770965090898,1.29379495,1932.3,1932.1,0.001]
[1770965092973,5.17492237,1932.4,1932.1,0.001]